bitfinex/quotes_SOLUSD_20241113
["timestamp","ask_amount","ask_price","bid_price","bid_amount"]
[1731534304572,28.36,211.62,211.55,14.73736575]
[1731534304745,23.57028335,211.65,211.58,23.57028335]
[1731534304942,23.57028335,211.63,211.56,23.57028335]
[1731534305145,23.57028335,211.63,211.55,23.57028335]
[1731534305368,12.11455342,211.68,211.5,15.9554]
[1731534305674,28.36,211.66,211.51,20.0]
[1731534305846,28.36,211.66,211.52,0.1]
[1731534306052,28.36,211.66,211.51,20.0]
[1731534306053,28.36,211.65,211.54,0.1]
[1731534306248,28.36,211.65,211.52,0.1]
[1731534306448,23.57028335,211.68,211.61,23.57028335]
[1731534306650,28.36,211.67,211.61,23.57028335]
[1731534307367,28.36,211.7,211.64,23.57028335]
[1731534308466,28.36,211.69,211.64,23.57028335]
[1731534309258,28.36,211.7,211.64,23.57028335]
[1731534309765,28.36,211.7,211.65,23.57028335]
[1731534310164,28.36,211.7,211.64,23.57028335]
[1731534310383,28.36,211.65,211.51,6.1824]
[1731534310556,51.93028335,211.6,211.51,29.75268335]
[1731534310756,23.57028335,211.58,211.51,29.75268335]
[1731534310982,28.36,211.55,211.47,23.57028335]
[1731534311160,28.36,211.55,211.4,0.1]
[1731534311161,28.36,211.49,211.41,23.57028335]
[1731534311478,23.57028335,211.46,211.4,6.0207]
[1731534311654,28.36,211.49,211.43,23.57028335]
[1731534311856,23.57028335,211.53,211.45,23.57028335]
[1731534312075,23.57028335,211.57,211.49,23.57028335]
[1731534312480,23.57028335,211.59,211.53,23.57028335]
[1731534312672,28.36,211.62,211.55,23.57028335]
[1731534314356,28.36,211.64,211.57,23.57028335]
[1731534314567,51.93028335,211.67,211.59,23.57028335]
[1731534314866,230.5,211.72,211.63,23.57028335]
[1731534314867,23.57028335,211.71,211.63,23.57028335]
[1731534315577,28.36,211.68,211.61,23.57028335]
[1731534316084,28.36,211.66,211.59,23.57028335]
[1731534316578,51.93028335,211.69,211.61,23.57028335]
[1731534316756,23.57028335,211.72,211.63,23.57028335]
[1731534317357,23.57028335,211.71,211.63,23.57028335]
[1731534317557,23.57028335,211.7,211.58,0.1]
[1731534317757,51.93028335,211.7,211.63,23.57028335]
[1731534318271,28.36,211.7,211.65,23.57028335]
[1731534318578,51.93028335,211.7,211.63,23.57028335]
[1731534318967,51.93028335,211.7,211.62,23.57028335]
[1731534319161,23.57028335,211.68,211.61,23.57028335]
[1731534319980,23.57028335,211.69,211.61,23.57028335]
[1731534320158,23.57028335,211.67,211.59,23.57028335]
[1731534320359,23.57028335,211.65,211.53,9.57369023]
[1731534320564,28.36,211.67,211.53,9.57369023]
[1731534320565,51.93028335,211.67,211.59,23.57028335]
[1731534321384,23.776884,211.64,211.53,6.3876]
[1731534321578,23.57028335,211.61,211.54,23.57028335]
[1731534321772,28.36,211.63,211.56,23.57028335]
[1731534321773,23.57028335,211.63,211.56,23.57028335]
[1731534322094,23.57028335,211.67,211.58,23.57028335]
[1731534323078,51.93028335,211.67,211.58,23.57028335]
[1731534323975,23.57028335,211.65,211.56,23.57028335]
[1731534324160,23.57028335,211.67,211.6,23.57028335]
[1731534324356,23.57028335,211.69,211.6,23.57028335]
[1731534325080,23.57028335,211.65,211.56,23.57028335]
[1731534325284,23.57028335,211.65,211.58,23.57028335]
[1731534325667,28.36,211.66,211.58,23.57028335]
[1731534325974,23.57028335,211.65,211.58,23.57028335]
[1731534326368,23.57028335,211.65,211.53,6.3876]
[1731534326369,23.57028335,211.61,211.54,23.57028335]
[1731534326781,23.57028335,211.61,211.53,6.3876]
[1731534326782,23.57028335,211.66,211.58,23.57028335]
[1731534327083,23.57028335,211.7,211.62,23.57028335]
[1731534328071,28.36,211.69,211.62,23.57028335]
[1731534328368,51.93028335,211.68,211.6,23.57028335]
[1731534328578,28.36,211.62,211.54,23.57028335]
[1731534328788,28.36,211.62,211.56,23.57028335]
[1731534328963,28.36,211.59,211.53,6.3876]
[1731534329287,28.36,211.57,211.5,39.74068335]
[1731534329583,28.36,211.57,211.52,23.57028335]
[1731534329763,28.36,211.57,211.5,39.74068335]
[1731534329964,51.93028335,211.62,211.54,23.57028335]
[1731534330561,51.93028335,211.6,211.52,23.57028335]
[1731534330762,4.7256,211.62,211.5,16.1704]
[1731534330763,51.93028335,211.58,211.5,39.74068335]
[1731534331267,51.93028335,211.58,211.52,23.57028335]
[1731534331586,51.93028335,211.58,211.5,39.74068335]
[1731534331794,28.36,211.59,211.52,23.57028335]
[1731534334694,23.57028335,211.62,211.54,23.57028335]
[1731534334877,28.36,211.63,211.56,23.57028335]
[1731534335195,28.36,211.63,211.58,23.57028335]
[1731534335491,28.36,211.63,211.56,23.57028335]
[1731534337794,23.57028335,211.68,211.6,23.57028335]
[1731534337967,3.14468321,211.77,211.53,23.57028335]
[1731534337968,23.57028335,211.72,211.65,23.57028335]
[1731534338678,23.57028335,211.72,211.63,23.57028335]
[1731534338977,28.36,211.77,211.67,23.57028335]
[1731534338978,23.57028335,211.74,211.67,23.57028335]
[1731534339369,23.57028335,211.74,211.61,16.2689]
[1731534339370,23.57028335,211.73,211.66,23.57028335]
[1731534339567,23.57028335,211.73,211.64,23.57028335]
[1731534339970,51.93028335,211.73,211.65,23.57028335]
[1731534342197,51.93028335,211.73,211.66,23.57028335]
[1731534342689,51.93028335,211.74,211.66,23.57028335]
[1731534343291,23.57028335,211.76,211.69,23.57028335]
[1731534343476,23.57028335,211.75,211.68,23.57028335]
[1731534343672,23.57028335,211.73,211.65,23.57028335]
[1731534344080,23.57028335,211.75,211.68,23.57028335]
[1731534344892,23.57028335,211.75,211.67,23.57028335]
[1731534345090,23.57028335,211.77,211.7,23.57028335]
[1731534345283,23.57028335,211.78,211.71,23.57028335]
[1731534345597,51.93028335,211.79,211.72,23.57028335]
[1731534346095,23.57028335,211.79,211.72,23.57028335]
[1731534346298,23.57028335,211.74,211.66,23.57028335]
[1731534346599,23.57028335,211.73,211.66,23.57028335]
[1731534346804,23.57028335,211.74,211.66,23.57028335]
[1731534346972,23.57028335,211.75,211.67,23.57028335]
[1731534347296,23.57028335,211.74,211.66,23.57028335]
[1731534347677,23.57028335,211.73,211.65,23.57028335]
[1731534348093,23.57028335,211.74,211.66,23.57028335]
[1731534348296,23.57028335,211.72,211.63,23.57028335]
[1731534350103,23.57028335,211.72,211.65,23.57028335]
[1731534350302,23.57028335,211.72,211.63,23.57028335]
[1731534350506,23.57028335,211.7,211.61,39.73918335]
[1731534351488,23.57028335,211.68,211.61,23.57028335]
[1731534351802,33.0833,211.72,211.57,23.57028335]
[1731534351803,23.57028335,211.66,211.57,23.57028335]
[1731534352687,28.43468335,211.71,211.63,23.57028335]
[1731534352877,51.93028335,211.75,211.67,23.57028335]
[1731534353390,38.91768335,211.77,211.69,23.57028335]
[1731534354179,43.63978335,211.77,211.69,23.57028335]
[1731534354580,38.91768335,211.77,211.69,23.57028335]
[1731534355100,23.57028335,211.77,211.69,23.57028335]
[1731534356475,23.57028335,211.79,211.71,23.57028335]
[1731534357477,51.93028335,211.81,211.73,23.57028335]
[1731534357679,56.65158335,211.81,211.73,23.57028335]
[1731534358687,28.36,211.78,211.71,23.57028335]
[1731534359905,28.36,211.78,211.65,15.8068]
[1731534359906,28.36,211.8,211.73,23.57028335]
[1731534360508,23.57028335,211.77,211.65,15.7068]
[1731534360694,28.36,211.74,211.67,23.57028335]
[1731534361008,28.36,211.7,211.63,23.57028335]
[1731534361212,23.57028335,211.71,211.54,0.1]
[1731534361213,28.36,211.8,211.7,16.035]
[1731534361504,28.36,211.8,211.76,23.57028335]
[1731534362108,28.36,211.82,211.76,23.57028335]
[1731534362316,28.36,211.82,211.74,23.57028335]
[1731534362910,28.36,211.82,211.76,23.57028335]
[1731534363691,23.776884,211.81,211.74,23.57028335]
[1731534363889,23.776884,211.81,211.64,29.66638335]
[1731534363890,23.57028335,211.75,211.68,23.57028335]
[1731534364089,23.57028335,211.75,211.65,15.635]
[1731534364090,28.36,211.74,211.66,23.57028335]
[1731534365018,28.36,211.74,211.68,23.57028335]
[1731534365920,28.36,211.74,211.7,23.57028335]
[1731534366125,28.36,211.76,211.7,23.57028335]
[1731534366601,28.36,211.76,211.65,15.635]
[1731534366602,28.36,211.74,211.68,23.57028335]
[1731534366813,28.36,211.74,211.66,23.57028335]
[1731534367508,28.36,211.72,211.66,23.57028335]
[1731534367712,28.36,211.68,211.62,23.57028335]
[1731534367910,15.3121,211.77,211.66,23.57028335]
[1731534368093,15.3121,211.77,211.68,23.57028335]
[1731534368094,20.0342,211.77,211.68,23.57028335]
[1731534368294,23.57028335,211.74,211.66,23.57028335]
[1731534368811,23.57028335,211.72,211.64,23.57028335]
[1731534368989,28.36,211.71,211.64,23.57028335]
[1731534369310,28.36,211.73,211.66,23.57028335]
[1731534369507,160.5,211.74,211.68,23.57028335]
[1731534369697,16.0574,211.82,211.72,23.57028335]
[1731534369898,52.40596665,211.84,211.76,23.57028335]
[1731534370794,0.4756833,211.84,211.82,23.57028335]
[1731534370991,0.4756833,211.84,211.8,23.57028335]
[1731534371193,0.4756833,211.84,211.78,23.57028335]
[1731534371419,0.4756833,211.84,211.79,23.57028335]
[1731534371713,0.4756833,211.84,211.8,23.57028335]
[1731534372113,0.4756833,211.84,211.79,23.57028335]
[1731534372499,52.40596665,211.84,211.69,6.1219]
[1731534372815,23.57028335,211.82,211.75,23.57028335]
[1731534372999,51.93028335,211.83,211.75,23.57028335]
[1731534373307,23.776884,211.82,211.75,23.57028335]
[1731534373507,51.93028335,211.81,211.74,23.57028335]
[1731534373895,51.93028335,211.81,211.72,23.57028335]
[1731534373896,52.136884,211.8,211.72,23.57028335]
[1731534374101,52.136884,211.8,211.74,23.57028335]
[1731534374309,28.36,211.8,211.74,23.57028335]
[1731534374495,0.4756833,211.84,211.79,23.57028335]
[1731534374695,0.4756833,211.84,211.81,23.57028335]
[1731534375001,0.4756833,211.84,211.82,23.57028335]
[1731534375689,0.4756833,211.84,211.81,23.57028335]
[1731534376506,0.4756833,211.84,211.82,23.57028335]
[1731534377094,0.4756833,211.84,211.79,23.57028335]
[1731534377512,0.4756833,211.84,211.81,23.57028335]
[1731534378224,0.4756833,211.84,211.79,23.57028335]
[1731534378628,28.36,211.83,211.77,23.57028335]
[1731534378836,51.93028335,211.83,211.76,23.57028335]
[1731534379601,28.36,211.81,211.74,23.57028335]
[1731534380134,28.36,211.79,211.74,23.57028335]
[1731534380809,28.36,211.79,211.72,23.57028335]
[1731534381411,28.36,211.76,211.69,23.57028335]
[1731534381607,28.36,211.76,211.72,23.57028335]
[1731534382204,28.36,211.76,211.63,22.2233]
[1731534382205,23.776884,211.73,211.68,23.57028335]
[1731534382508,28.36,211.72,211.66,23.57028335]
[1731534383411,23.57028335,211.71,211.64,23.57028335]
[1731534383615,23.57028335,211.69,211.61,23.57028335]
[1731534383810,4.7245,211.66,211.59,23.57028335]
[1731534384028,23.57028335,211.65,211.57,23.57028335]
[1731534384706,28.36,211.66,211.59,23.57028335]
[1731534384900,160.5,211.67,211.61,23.57028335]
[1731534385127,23.57028335,211.73,211.65,23.57028335]
[1731534385626,160.5,211.75,211.67,23.57028335]
[1731534385627,188.79288335,211.75,211.67,23.57028335]
[1731534385829,23.57028335,211.73,211.65,23.57028335]
[1731534386014,4.7228,211.74,211.67,23.57028335]
[1731534386204,212.43028335,211.75,211.67,23.57028335]
[1731534386404,217.15288335,211.75,211.67,23.57028335]
[1731534386825,23.776884,211.74,211.67,23.57028335]
[1731534388326,23.57028335,211.73,211.65,23.57028335]
[1731534389024,23.776884,211.68,211.61,23.57028335]
[1731534389328,23.57028335,211.67,211.59,23.57028335]
[1731534389925,23.776884,211.66,211.59,23.57028335]
[1731534390327,23.776884,211.66,211.57,23.57028335]
[1731534390624,23.57028335,211.65,211.57,23.57028335]
[1731534391032,23.776884,211.64,211.57,23.57028335]
[1731534391409,56.861984,211.64,211.47,6.3045]
[1731534391610,23.776884,211.58,211.5,23.57028335]
[1731534392107,23.776884,211.56,211.5,23.57028335]
[1731534392319,23.776884,211.56,211.48,23.57028335]
[1731534392826,23.776884,211.56,211.44,23.57028335]
[1731534392827,23.776884,211.52,211.44,23.57028335]
[1731534393333,23.57028335,211.51,211.44,23.57028335]
[1731534393528,23.57028335,211.51,211.41,21.5447]
[1731534393529,23.776884,211.5,211.42,23.57028335]
[1731534393932,28.504484,211.52,211.44,23.57028335]
[1731534394113,23.776884,211.5,211.42,23.57028335]
[1731534394430,23.776884,211.5,211.44,23.57028335]
[1731534394627,23.776884,211.52,211.44,23.57028335]
[1731534395116,23.776884,211.54,211.46,23.57028335]
[1731534395915,23.57028335,211.53,211.44,23.57028335]
[1731534396738,23.776884,211.5,211.42,23.57028335]
[1731534397139,23.57028335,211.49,211.42,23.57028335]
[1731534397338,23.57028335,211.49,211.4,23.57028335]
[1731534397538,23.57028335,211.54,211.47,23.57028335]
[1731534397748,23.57028335,211.59,211.51,23.57028335]
[1731534398623,28.36,211.58,211.51,23.57028335]
[1731534399822,33.0864,211.58,211.49,23.57028335]
[1731534400022,28.36,211.56,211.49,23.57028335]
[1731534401528,28.36,211.52,211.45,23.57028335]
[1731534402041,28.36,211.52,211.43,23.57028335]
[1731534402544,28.36,211.52,211.45,23.57028335]
[1731534403632,28.36,211.5,211.43,23.57028335]
[1731534403821,28.36,211.48,211.41,23.57028335]
[1731534404022,28.36,211.44,211.37,23.57028335]
[1731534405346,28.36,211.44,211.31,23.57028335]
[1731534405347,28.36,211.38,211.31,23.57028335]
[1731534405534,28.36,211.38,211.27,6.0608]
[1731534405535,28.36,211.38,211.33,23.57028335]
[1731534405727,28.36,211.38,211.35,23.57028335]
[1731534405936,28.36,211.42,211.37,23.57028335]
[1731534406441,23.57028335,211.45,211.37,23.57028335]
[1731534406442,28.36,211.44,211.37,23.57028335]
[1731534407845,28.36,211.44,211.39,23.57028335]
[1731534408144,28.36,211.46,211.39,23.57028335]
[1731534408542,28.36,211.46,211.41,23.57028335]
[1731534408745,28.36,211.46,211.32,0.22549]
[1731534408746,28.36,211.46,211.39,23.57028335]
[1731534409136,23.57028335,211.45,211.37,23.57028335]
[1731534409326,28.36,211.44,211.37,23.57028335]
[1731534409648,28.36,211.44,211.41,23.57028335]
[1731534409944,28.36,211.48,211.41,23.57028335]
[1731534410835,4.7273,211.54,211.47,23.57028335]
[1731534411035,28.36,211.53,211.47,23.57028335]
[1731534411242,93.69577335,211.52,211.35,23.1746]
[1731534411446,28.36,211.42,211.29,6.6524]
[1731534411635,28.36,211.42,211.34,23.57028335]
[1731534412241,28.36,211.42,211.36,23.57028335]
[1731534413047,28.36,211.42,211.34,23.57028335]
[1731534413651,16.0993,211.47,211.36,23.57028335]
[1731534413652,28.36,211.44,211.36,23.57028335]
[1731534413849,28.36,211.44,211.38,23.57028335]
[1731534414638,28.36,211.45,211.38,23.57028335]
[1731534415163,28.36,211.45,211.32,20.0]
[1731534415164,0.2,211.44,211.32,20.0]
[1731534415342,23.77028335,211.44,211.36,23.57028335]
[1731534416448,23.67028335,211.44,211.36,23.57028335]
[1731534416657,23.77028335,211.44,211.36,23.57028335]
[1731534417354,0.1,211.44,211.38,23.57028335]
[1731534417544,0.1,211.44,211.33,0.12549]
[1731534417545,0.1,211.48,211.42,23.57028335]
[1731534417749,23.67028335,211.5,211.42,23.57028335]
[1731534417750,0.1,211.47,211.42,23.57028335]
[1731534418544,0.1,211.47,211.37,6.2253]
[1731534418545,0.1,211.45,211.37,6.2253]
[1731534418740,0.1,211.43,211.36,39.45318335]
[1731534420143,23.57028335,211.44,211.36,39.45318335]
[1731534420355,0.1,211.43,211.36,39.45318335]
[1731534420651,0.1,211.36,211.28,6.2619]
[1731534420853,23.67028335,211.36,211.28,29.83218335]
[1731534421462,0.1,211.34,211.28,29.83218335]
[1731534422169,0.2,211.34,211.28,23.57028335]
[1731534422339,0.1,211.34,211.28,23.57028335]
[1731534422539,23.57028335,211.32,211.25,15.9978]
[1731534422761,51.93028335,211.32,211.24,23.57028335]
[1731534423059,23.77028335,211.3,211.22,23.57028335]
[1731534423365,23.67028335,211.28,211.2,23.57028335]
[1731534423564,0.1,211.25,211.19,23.57028335]
[1731534423862,0.1,211.26,211.19,23.57028335]
[1731534424239,23.67028335,211.29,211.21,23.57028335]
[1731534424435,23.57028335,211.29,211.21,23.57028335]
[1731534424647,23.57028335,211.29,211.16,6.0703]
[1731534424648,0.1,211.29,211.23,23.57028335]
[1731534424864,0.1,211.27,211.23,23.57028335]
[1731534425340,0.1,211.28,211.23,23.57028335]
[1731534425535,0.1,211.25,211.19,23.57028335]
[1731534425743,0.2,211.25,211.19,23.57028335]
[1731534426250,23.77028335,211.25,211.17,23.57028335]
[1731534426861,0.1,211.23,211.13,15.5472]
[1731534427076,0.1,211.17,211.07,15.5472]
[1731534427252,0.1,211.17,211.09,23.57028335]
[1731534427253,23.67028335,211.17,211.09,23.57028335]
[1731534427565,0.1,211.11,211.05,23.57028335]
[1731534427868,0.1,211.12,211.05,23.57028335]
[1731534428163,28.36,211.15,211.01,22.9331]
[1731534428164,0.1,211.15,211.09,23.57028335]
[1731534428469,0.1,211.16,211.09,23.57028335]
[1731534429051,0.2,211.17,211.11,23.57028335]
[1731534429254,0.1,211.17,211.11,23.57028335]
[1731534430139,0.1,211.17,211.01,22.9331]
[1731534430140,0.1,211.1,211.01,22.9331]
[1731534430339,0.2,211.1,211.03,23.57028335]
[1731534430570,0.1,211.1,211.03,23.57028335]
[1731534430746,23.77028335,211.12,211.03,23.57028335]
[1731534431063,0.1,211.18,211.11,23.57028335]
[1731534431269,0.2,211.14,211.09,23.57028335]
[1731534431562,0.2,211.14,211.01,10.40569048]
[1731534431563,0.2,211.14,211.11,23.57028335]
[1731534431941,0.1,211.14,211.01,10.40569048]
[1731534432164,0.1,211.1,211.06,23.57028335]
[1731534432463,0.1,211.08,211.04,23.57028335]
[1731534432961,0.2,211.08,211.02,23.57028335]
[1731534433366,0.1,211.1,211.04,23.57028335]
[1731534433855,0.1,211.09,211.04,23.57028335]
[1731534434365,0.1,211.1,211.04,23.57028335]
[1731534434565,0.2,211.13,211.06,23.57028335]
[1731534434763,0.1,211.11,211.06,23.57028335]
[1731534435255,0.1,211.09,211.04,23.57028335]
[1731534435757,0.1,211.1,211.06,23.57028335]
[1731534435958,0.1,211.17,211.08,23.57028335]
[1731534436162,0.2,211.17,211.11,23.57028335]
[1731534436466,0.1,211.14,211.11,23.57028335]
[1731534436766,0.2,211.24,211.13,23.57028335]
[1731534436971,0.1,211.24,211.18,23.57028335]
[1731534437657,30.02058335,211.27,211.2,23.57028335]
[1731534437658,0.1,211.26,211.2,23.57028335]
[1731534437859,0.1,211.27,211.22,23.57028335]
[1731534438242,0.2,211.27,211.22,23.57028335]
[1731534438466,0.2,211.25,211.2,23.57028335]
[1731534438661,0.1,211.23,211.18,23.57028335]
[1731534438973,0.2,211.21,211.14,23.57028335]
[1731534439653,0.2,211.21,211.16,23.57028335]
[1731534440365,0.1,211.19,211.14,23.57028335]
[1731534440562,0.2,211.21,211.14,23.57028335]
[1731534441268,0.1,211.21,211.14,23.57028335]
[1731534441570,0.2,211.21,211.14,23.57028335]
[1731534442369,0.1,211.17,211.14,23.57028335]
[1731534442754,0.1,211.17,211.12,23.57028335]
[1731534442957,0.1,211.13,211.1,23.57028335]
[1731534443455,0.1,211.13,211.02,6.115]
[1731534443456,0.1,211.13,211.08,23.57028335]
[1731534443659,0.1,211.13,211.02,6.115]
[1731534443660,0.1,211.09,211.06,23.57028335]
[1731534443971,0.1,211.09,211.03,23.57028335]
[1731534443972,0.1,211.07,211.03,23.57028335]
[1731534444358,0.1,211.07,211.05,23.57028335]
[1731534445071,0.1,211.1,211.05,23.57028335]
[1731534445368,28.46,211.1,211.03,23.57028335]
[1731534445565,0.1,211.08,211.03,23.57028335]
[1731534445766,0.1,211.08,211.05,23.57028335]
[1731534446074,28.36,211.1,211.05,23.57028335]
[1731534446266,0.1,211.07,211.05,23.57028335]
[1731534446571,0.1,211.09,211.05,23.57028335]
[1731534446964,0.1,211.07,211.05,23.57028335]
[1731534447470,0.1,211.11,211.05,23.57028335]
[1731534447673,0.1,211.11,211.07,23.57028335]
[1731534449180,0.1,211.09,211.07,23.57028335]
[1731534449380,0.1,211.11,211.07,23.57028335]
[1731534450163,0.1,211.09,211.07,23.57028335]
[1731534450470,0.1,211.08,211.05,23.57028335]
[1731534450661,0.1,211.1,211.05,23.57028335]
[1731534450863,0.1,211.06,210.9,22.0437]
[1731534451073,0.1,211.0,210.96,23.57028335]
[1731534451254,0.1,210.97,210.92,23.57028335]
[1731534451457,0.2,210.97,210.92,23.57028335]
[1731534451654,0.1,210.95,210.9,23.57028335]
[1731534451863,0.1,210.99,210.92,23.57028335]
[1731534451864,0.1,210.97,210.92,23.57028335]
[1731534452060,0.2,210.96,210.89,0.4756833]
[1731534452382,0.1,210.92,210.89,0.4756833]
[1731534452579,0.1,210.94,210.89,24.04596665]
[1731534452874,0.2,210.97,210.91,23.57028335]
[1731534453076,0.1,210.97,210.91,23.57028335]
[1731534453676,0.1,210.94,210.89,24.04596665]
[1731534454053,0.1,210.92,210.89,24.04596665]
[1731534454454,0.2,210.92,210.89,0.4756833]
[1731534454774,0.1,210.94,210.89,0.4756833]
[1731534454973,0.1,210.92,210.89,24.04596665]
[1731534455168,0.1,210.95,210.89,24.04596665]
[1731534455480,0.1,210.93,210.89,24.04596665]
[1731534455858,0.1,210.95,210.89,24.04596665]
[1731534456267,0.1,210.97,210.91,23.57028335]
[1731534456464,0.1,210.97,210.93,23.57028335]
[1731534456785,0.1,210.96,210.93,23.57028335]
[1731534457079,0.1,210.96,210.91,23.57028335]
[1731534457663,0.2,210.99,210.93,23.57028335]
[1731534457859,0.1,210.97,210.93,23.57028335]
[1731534458176,0.1,210.94,210.89,24.04596665]
[1731534458563,0.1,210.94,210.9,20.0]
[1731534458881,0.1,210.94,210.89,24.04596665]
[1731534459075,0.1,210.92,210.89,24.04596665]
[1731534459277,0.2,210.9,210.89,0.4756833]
[1731534459458,23.77028335,210.9,210.89,0.4756833]
[1731534460581,0.2,210.9,210.89,0.4756833]
[1731534460783,23.67028335,210.94,210.89,0.4756833]
[1731534460968,0.1,210.94,210.89,24.04596665]
[1731534461170,0.1,210.95,210.91,23.57028335]
[1731534461366,0.1,210.94,210.91,23.57028335]
[1731534461879,0.1,210.95,210.91,23.57028335]
[1731534462062,0.1,210.96,210.91,23.57028335]
[1731534462263,0.1,210.94,210.92,23.57028335]
[1731534462588,0.1,210.96,210.92,23.57028335]
[1731534463668,0.1,210.98,210.93,20.0]
[1731534463867,0.1,211.0,210.94,23.57028335]
[1731534464067,0.1,210.98,210.94,23.57028335]
[1731534464373,0.1,211.0,210.94,20.0]
[1731534464580,0.1,210.99,210.96,23.57028335]
[1731534464893,0.2,211.02,210.98,23.57028335]
[1731534465200,0.1,211.01,210.97,23.57028335]
[1731534465364,0.1,211.01,210.96,23.57028335]
[1731534465565,0.1,211.01,210.97,23.57028335]
[1731534465863,0.1,211.04,210.98,23.57028335]
[1731534466072,0.1,211.04,211.0,23.57028335]
[1731534466494,0.1,211.06,211.03,23.57028335]
[1731534466783,0.1,211.09,211.05,23.57028335]
[1731534466996,0.1,211.07,211.03,23.57028335]
[1731534467282,0.1,211.06,211.04,23.57028335]
[1731534467463,28.36,211.1,211.04,23.57028335]
[1731534467663,0.1,211.07,211.05,23.57028335]
[1731534467888,0.1,211.08,211.05,23.57028335]
[1731534468462,0.1,211.09,211.05,23.57028335]
[1731534468670,0.1,211.07,211.05,23.57028335]
[1731534468867,0.2,211.11,211.05,23.57028335]
[1731534469089,0.2,211.08,211.05,23.57028335]
[1731534469388,0.2,211.13,211.07,23.57028335]
[1731534469578,160.5,211.19,211.12,23.57028335]
[1731534469579,0.2,211.19,211.12,23.57028335]
[1731534469789,0.1,211.18,211.15,23.57028335]
[1731534470280,0.1,211.19,211.15,23.57028335]
[1731534470590,0.2,211.24,211.12,16.538]
[1731534470796,7.28594685,211.27,211.23,23.57028335]
[1731534470963,0.1,211.27,211.25,23.57028335]
[1731534471889,0.1,211.29,211.25,23.57028335]
[1731534472195,0.1,211.26,211.25,23.57028335]
[1731534472561,0.1,211.26,211.23,23.57028335]
[1731534472789,0.2,211.26,211.23,23.57028335]
[1731534472991,0.1,211.26,211.23,23.57028335]
[1731534473192,0.2,211.26,211.23,23.57028335]
[1731534473482,0.1,211.26,211.23,23.57028335]
[1731534473878,0.1,211.24,211.21,20.0]
[1731534474085,0.1,211.22,211.18,23.57028335]
[1731534474981,0.1,211.22,211.2,23.57028335]
[1731534475176,0.2,211.24,211.2,23.57028335]
[1731534475692,0.1,211.26,211.21,20.0]
[1731534475881,0.1,211.25,211.22,23.57028335]
[1731534476283,0.2,211.25,211.22,23.57028335]
[1731534476969,0.1,211.25,211.22,23.57028335]
[1731534477365,0.2,211.29,211.24,23.57028335]
[1731534477589,0.2,211.31,211.24,23.57028335]
[1731534477792,0.2,211.27,211.24,23.57028335]
[1731534478393,0.1,211.27,211.24,23.57028335]
[1731534478606,0.2,211.27,211.24,23.57028335]
[1731534478771,0.1,211.29,211.26,23.57028335]
[1731534478982,0.2,211.3,211.26,23.57028335]
[1731534479283,23.776884,211.33,211.26,23.57028335]
[1731534479284,0.2,211.28,211.26,23.57028335]
[1731534479477,0.1,211.28,211.26,23.57028335]
[1731534480179,0.1,211.3,211.26,23.57028335]
[1731534480385,0.1,211.29,211.26,23.57028335]
[1731534480573,0.1,211.31,211.26,23.57028335]
[1731534480774,7.38397254,211.34,211.3,23.57028335]
[1731534481195,7.28397254,211.34,211.32,23.57028335]
[1731534482193,0.1,211.35,211.33,20.0]
[1731534482403,0.1,211.31,211.25,23.57028335]
[1731534482574,0.1,211.24,211.2,23.57028335]
[1731534482778,0.2,211.28,211.22,23.57028335]
[1731534482982,0.1,211.3,211.17,6.46]
[1731534483197,0.1,211.3,211.28,23.57028335]
[1731534483389,0.1,211.33,211.28,23.57028335]
[1731534483577,0.1,211.35,211.3,23.57028335]
[1731534483779,0.1,211.35,211.34,23.57028335]
[1731534483975,0.2,211.4,211.34,23.57028335]
[1731534484281,0.1,211.36,211.32,20.0]
[1731534484484,7.39812378,211.44,211.37,20.0]
[1731534484696,0.1,211.45,211.42,23.57028335]
[1731534485376,0.2,211.49,211.44,23.57028335]
[1731534485600,0.2,211.49,211.46,23.57028335]